[Event "FTX Road to Miami Prelims 2022"]
[Site "Online"]
[Date "2022.07.04"]
[Round "12.4"]
[White "Wei, Yi"]
[Black "Sevian, Samuel"]
[Result "0-1"]
[ECO "A20"]
[WhiteElo "2727"]
[BlackElo "2684"]
[Annotator "ChessBase"]
[PlyCount "86"]
[EventDate "2022.07.10"]
[EventType "tourn"]
[EventCountry "NET"]
[SourceTitle "playchess.com"]
[Source "ChessBase"]
[SourceQuality "1"]
[TimeControl "40/5400+30:1800+30"]

1. c4 {[%emt 1:15:40]} e5 {[%emt 1:15:40]} 2. d3 {[%emt 0:00:22]} Nf6 {[%emt 0:00:22]} 3. Nf3 {[%emt 0:00:22]} Nc6 {[%emt 0:00:21]} 4. a3 {[%emt 0:00:21]} d5 {[%emt 0:00:23]} 5. cxd5 {[%emt 0:00:22]} Nxd5 {[%emt 0:00:19]} 6. e4 {[%emt 0:00:20]} Nb6 {[%emt 0:00:37]} 7. Be3 {[%emt 0:00:22]} Be7 {[%emt 0:00:52]} 8. Nbd2 {[%emt 0:00:23]} O-O {[%emt 0:00:22]} 9. Rc1 {[%emt 0:00:22]} Bf6 {[%emt 0:00:35]} 10. Be2 {[%emt 0:00:33]} a5 {[%emt 0:00:29]} 11. O-O {[%emt 0:00:23]} Re8 {[%emt 0:00:49]} 12. Qc2 {[%emt 0:00:39]} a4 {[%emt 0:00:48]} 13. h3 {[%emt 0:02:09]} Be6 {[%emt 0:00:36]} 14. Rfe1 {[%emt 0:00:37]} h6 {[%emt 0:00:43]} 15. Nf1 {[%emt 0:00:36]} Bb3 {[%emt 0:00:38]} 16. Qb1 {[%emt 0:00:42]} Nd7 {[%emt 0:00:26]} 17. Bd1 {[%emt 0:01:52]} Bxd1 {[%emt 0:02:02]} 18. Rexd1 {[%emt 0:00:23]} Nd4 {[%emt 0:00:34]} 19. Nxd4 {[%emt 0:01:44]} exd4 {[%emt 0:00:20]} 20. Bf4 {[%emt 0:00:21]} c5 {[%emt 0:00:23]} 21. b4 {[%emt 0:00:57]} axb3 {[%emt 0:01:18]} 22. Qxb3 {[%emt 0:00:21]} b6 {[%emt 0:01:16]} 23. Nd2 {[%emt 0:04:12]} Bg5 {[%emt 0:03:56]} 24. Bg3 {[%emt 0:02:27]} Qf6 {[%emt 0:02:08]} 25. Rc2 {[%emt 0:01:30]} Bh4 {[%emt 0:00:22]} 26. Bxh4 {[%emt 0:01:16]} Qxh4 {[%emt 0:00:20]} 27. Rf1 {[%emt 0:02:05]} Ne5 {[%emt 0:02:07]} 28. Kh2 {[%emt 0:01:21]} Ng4+ {[%emt 0:00:32]} 29. Kg1 {[%emt 0:00:21]} Ne5 {[%emt 0:00:21]} 30. Kh2 {[%emt 0:00:24]} Re6 {[%emt 0:02:07]} 31. g3 {[%emt 0:00:28]} Qh5 {[%emt 0:00:21]} 32. f3 {[%emt 0:01:47]} Rg6 {[%emt 0:00:47]} 33. Rf2 {[%emt 0:00:24]} b5 {[%emt 0:01:48]} 34. Qxb5 {[%emt 0:00:38]} c4 {[%emt 0:00:20]} 35. Qd5 {[%emt 0:00:45]} Rxa3 {[%emt 0:00:49]} 36. Qd8+ {[%emt 0:00:35]} Kh7 {[%emt 0:00:22]} 37. g4 {[%emt 0:00:21]} Rxg4 {[%emt 0:00:27]} 38. fxg4 {[%emt 0:00:40]} Nxg4+ {[%emt 0:00:20]} 39. Kg1 {[%emt 0:00:25]} Nxf2 {[%emt 0:00:34]} 40. Kxf2 {[%emt 0:00:21]} Rxd3 {[%emt 0:00:20]} 41. Qd7 {[%emt 0:30:42]} Qh4+ {[%emt 0:30:31]} 42. Kf1 {[%emt 0:00:25]} Qf4+ {[%emt 0:00:37]} 43. Ke1 {[%emt 0:00:51]} c3 {[%emt 0:00:28]} 0-1

[Event "FTX Road to Miami Prelims 2022"]
[Site "Online"]
[Date "2022.07.04"]
[Round "12.5"]
[White "Dominguez Perez, Leinier"]
[Black "Tari, Aryan"]
[Result "1-0"]
[ECO "C67"]
[WhiteElo "2754"]
[BlackElo "2672"]
[Annotator "ChessBase"]
[PlyCount "97"]
[EventDate "2022.07.10"]
[EventType "tourn"]
[EventCountry "NET"]
[SourceTitle "playchess.com"]
[Source "ChessBase"]
[SourceQuality "1"]
[TimeControl "40/5400+30:1800+30"]

1. e4 {[%emt 1:15:40]} e5 {[%emt 1:15:40]} 2. Nf3 {[%emt 0:00:22]} Nc6 {[%emt 0:00:22]} 3. Bb5 {[%emt 0:00:21]} Nf6 {[%emt 0:00:21]} 4. O-O {[%emt 0:00:21]} Nxe4 {[%emt 0:00:20]} 5. d4 {[%emt 0:00:20]} Nd6 {[%emt 0:00:21]} 6. Bxc6 {[%emt 0:00:21]} dxc6 {[%emt 0:00:20]} 7. dxe5 {[%emt 0:00:20]} Nf5 {[%emt 0:00:20]} 8. Qxd8+ {[%emt 0:00:21]} Kxd8 {[%emt 0:00:20]} 9. Rd1+ {[%emt 0:00:21]} Ke8 {[%emt 0:00:22]} 10. Nc3 {[%emt 0:00:20]} Ne7 {[%emt 0:00:56]} 11. h3 {[%emt 0:01:12]} Ng6 {[%emt 0:00:43]} 12. Re1 {[%emt 0:00:49]} Be7 {[%emt 0:02:21]} 13. Bg5 {[%emt 0:00:38]} Bxg5 {[%emt 0:01:21]} 14. Nxg5 {[%emt 0:00:22]} Ke7 {[%emt 0:00:31]} 15. Kh2 {[%emt 0:00:32]} h5 {[%emt 0:02:01]} 16. g3 {[%emt 0:06:27]} Bf5 {[%emt 0:01:06]} 17. Re2 {[%emt 0:00:23]} Nf8 {[%emt 0:03:30]} 18. Rd1 {[%emt 0:01:46]} Ne6 {[%emt 0:00:34]} 19. Nxe6 {[%emt 0:00:22]} Kxe6 {[%emt 0:00:30]} 20. f4 {[%emt 0:01:30]} Rad8 {[%emt 0:00:45]} 21. Red2 {[%emt 0:01:05]} Rxd2+ {[%emt 0:00:24]} 22. Rxd2 {[%emt 0:00:20]} f6 {[%emt 0:00:50]} 23. exf6 {[%emt 0:01:10]} Kxf6 {[%emt 0:00:39]} 24. Kg2 {[%emt 0:00:22]} Re8 {[%emt 0:00:35]} 25. Ne2 {[%emt 0:00:21]} a5 {[%emt 0:01:13]} 26. Nd4 {[%emt 0:01:51]} Bc8 {[%emt 0:02:46]} 27. Nf3 {[%emt 0:00:51]} Be6 {[%emt 0:00:23]} 28. a3 {[%emt 0:00:42]} b5 {[%emt 0:01:13]} 29. Ng5 {[%emt 0:01:23]} Bd5+ {[%emt 0:01:11]} 30. Kf2 {[%emt 0:00:21]} Kf5 {[%emt 0:00:29]} 31. Nf3 {[%emt 0:00:46]} b4 {[%emt 0:00:49]} 32. axb4 {[%emt 0:01:37]} axb4 {[%emt 0:00:20]} 33. Rd4 {[%emt 0:00:31]} Re4 {[%emt 0:01:27]} 34. Nh4+ {[%emt 0:01:37]} Kf6 {[%emt 0:00:25]} 35. Rxe4 {[%emt 0:00:48]} Bxe4 {[%emt 0:00:20]} 36. c3 {[%emt 0:00:21]} c5 {[%emt 0:00:43]} 37. Ke3 {[%emt 0:00:35]} Bd5 {[%emt 0:00:27]} 38. Nf3 {[%emt 0:00:28]} Kf5 {[%emt 0:00:43]} 39. Ne5 {[%emt 0:00:34]} Bg2 {[%emt 0:01:02]} 40. g4+ {[%emt 0:00:22]} hxg4 {[%emt 0:00:20]} 41. hxg4+ {[%emt 0:30:21]} Ke6 {[%emt 0:30:21]} 42. Nd3 {[%emt 0:00:36]} bxc3 {[%emt 0:00:38]} 43. bxc3 {[%emt 0:00:20]} Kd5 {[%emt 0:00:26]} 44. f5 {[%emt 0:00:32]} Kc4 {[%emt 0:00:46]} 45. Nf4 {[%emt 0:00:21]} Bc6 {[%emt 0:01:16]} 46. Kd2 {[%emt 0:00:25]} Bd7 {[%emt 0:00:33]} 47. Nh5 {[%emt 0:00:47]} g6 {[%emt 0:00:45]} 48. fxg6 {[%emt 0:00:24]} Bxg4 {[%emt 0:00:35]} 49. g7 {[%emt 0:00:27]} 1-0

[Event "FTX Road to Miami Prelims 2022"]
[Site "Online"]
[Date "2022.07.04"]
[Round "12.6"]
[White "Duda, Jan-Krzysztof"]
[Black "Xiong, Jeffery"]
[Result "1/2-1/2"]
[ECO "C65"]
[WhiteElo "2750"]
[BlackElo "2691"]
[Annotator "ChessBase"]
[PlyCount "114"]
[EventDate "2022.07.10"]
[EventType "tourn"]
[EventCountry "NET"]
[SourceTitle "playchess.com"]
[Source "ChessBase"]
[SourceQuality "1"]
[TimeControl "40/5400+30:1800+30"]

1. e4 {[%emt 1:15:40]} e5 {[%emt 1:15:40]} 2. Nf3 {[%emt 0:00:23]} Nc6 {[%emt 0:00:22]} 3. Bb5 {[%emt 0:00:21]} Nf6 {[%emt 0:00:21]} 4. d3 {[%emt 0:00:24]} Bc5 {[%emt 0:00:22]} 5. c3 {[%emt 0:00:34]} O-O {[%emt 0:00:21]} 6. O-O {[%emt 0:00:23]} Re8 {[%emt 0:00:22]} 7. b4 {[%emt 0:01:01]} Bb6 {[%emt 0:01:13]} 8. Bc4 {[%emt 0:00:22]} d6 {[%emt 0:00:25]} 9. a4 {[%emt 0:00:22]} a5 {[%emt 0:00:22]} 10. b5 {[%emt 0:00:23]} Ne7 {[%emt 0:00:28]} 11. Qb3 {[%emt 0:01:24]} d5 {[%emt 0:00:23]} 12. exd5 {[%emt 0:00:23]} Nf5 {[%emt 0:00:22]} 13. Bg5 {[%emt 0:04:22]} h6 {[%emt 0:00:24]} 14. Bxf6 {[%emt 0:00:21]} Qxf6 {[%emt 0:00:20]} 15. Nbd2 {[%emt 0:00:21]} Nd6 {[%emt 0:00:52]} 16. Rae1 {[%emt 0:00:42]} Bg4 {[%emt 0:00:40]} 17. Re2 {[%emt 0:04:06]} Bxf3 {[%emt 0:01:40]} 18. Nxf3 {[%emt 0:00:19]} e4 {[%emt 0:00:21]} 19. dxe4 {[%emt 0:00:31]} Rxe4 {[%emt 0:00:20]} 20. Bd3 {[%emt 0:00:49]} Rxe2 {[%emt 0:02:06]} 21. Bxe2 {[%emt 0:00:20]} Ne4 {[%emt 0:00:21]} 22. Bd3 {[%emt 0:04:29]} Qxc3 {[%emt 0:00:36]} 23. Qxc3 {[%emt 0:00:42]} Nxc3 {[%emt 0:00:20]} 24. Bc2 {[%emt 0:00:21]} Re8 {[%emt 0:04:11]} 25. Re1 {[%emt 0:00:22]} Rxe1+ {[%emt 0:00:21]} 26. Nxe1 {[%emt 0:00:20]} Kf8 {[%emt 0:00:21]} 27. Kf1 {[%emt 0:01:18]} Ke7 {[%emt 0:00:26]} 28. Nd3 {[%emt 0:00:22]} Kd6 {[%emt 0:00:45]} 29. Bb3 {[%emt 0:00:22]} f5 {[%emt 0:01:09]} 30. h4 {[%emt 0:00:37]} g5 {[%emt 0:00:28]} 31. hxg5 {[%emt 0:00:23]} hxg5 {[%emt 0:00:20]} 32. Ke1 {[%emt 0:00:47]} Nxd5 {[%emt 0:00:25]} 33. Ke2 {[%emt 0:00:43]} Bd4 {[%emt 0:00:27]} 34. Kf3 {[%emt 0:00:34]} Nf6 {[%emt 0:00:46]} 35. Bf7 {[%emt 0:00:46]} Ke7 {[%emt 0:01:00]} 36. Bb3 {[%emt 0:00:31]} Ne4 {[%emt 0:00:53]} 37. Ke2 {[%emt 0:00:55]} Kd6 {[%emt 0:00:32]} 38. Bc2 {[%emt 0:00:35]} Nc3+ {[%emt 0:01:19]} 39. Kd2 {[%emt 0:00:22]} Nd5 {[%emt 0:00:21]} 40. Ke2 {[%emt 0:00:38]} g4 {[%emt 0:01:40]} 41. g3 {[%emt 0:30:33]} Nc3+ {[%emt 0:30:24]} 42. Kf1 {[%emt 0:00:23]} Ne4 {[%emt 0:02:27]} 43. Kg2 {[%emt 0:00:25]} c5 {[%emt 0:01:42]} 44. bxc6 {[%emt 0:00:20]} bxc6 {[%emt 0:00:20]} 45. f3 {[%emt 0:00:21]} gxf3+ {[%emt 0:00:34]} 46. Kxf3 {[%emt 0:00:20]} Be5 {[%emt 0:00:20]} 47. Nf4 {[%emt 0:01:34]} Nc3 {[%emt 0:00:44]} 48. Ne2 {[%emt 0:00:35]} Nxe2 {[%emt 0:01:30]} 49. Kxe2 {[%emt 0:00:20]} Bxg3 {[%emt 0:00:24]} 50. Bxf5 {[%emt 0:00:22]} Kc5 {[%emt 0:00:21]} 51. Bd7 {[%emt 0:00:22]} Kd6 {[%emt 0:00:23]} 52. Be8 {[%emt 0:00:22]} Kc5 {[%emt 0:00:23]} 53. Kd3 {[%emt 0:00:21]} Be1 {[%emt 0:00:22]} 54. Bd7 {[%emt 0:00:22]} Kd6 {[%emt 0:00:21]} 55. Be8 {[%emt 0:00:20]} Kc5 {[%emt 0:00:21]} 56. Bd7 {[%emt 0:00:21]} Kd6 {[%emt 0:00:21]} 57. Be8 {[%emt 0:00:20]} Kc5 {[%emt 0:00:21]} 1/2-1/2

[Event "FTX Road to Miami Prelims 2022"]
[Site "Online"]
[Date "2022.07.04"]
[Round "12.7"]
[White "Mamedyarov, Shakhriyar"]
[Black "Giri, Anish"]
[Result "1/2-1/2"]
[ECO "D78"]
[WhiteElo "2759"]
[BlackElo "2760"]
[Annotator "ChessBase"]
[PlyCount "112"]
[EventDate "2022.07.10"]
[EventType "tourn"]
[EventCountry "NET"]
[SourceTitle "playchess.com"]
[Source "ChessBase"]
[SourceQuality "1"]
[TimeControl "40/5400+30:1800+30"]

1. d4 {[%emt 1:15:40]} Nf6 {[%emt 1:15:40]} 2. c4 {[%emt 0:00:24]} g6 {[%emt 0:00:21]} 3. g3 {[%emt 0:00:23]} c6 {[%emt 0:00:23]} 4. Nf3 {[%emt 0:00:24]} Bg7 {[%emt 0:00:23]} 5. Bg2 {[%emt 0:00:21]} d5 {[%emt 0:00:22]} 6. O-O {[%emt 0:00:23]} O-O {[%emt 0:00:21]} 7. a4 {[%emt 0:00:23]} a5 {[%emt 0:00:23]} 8. cxd5 {[%emt 0:00:27]} cxd5 {[%emt 0:00:21]} 9. Qb3 {[%emt 0:00:21]} Nc6 {[%emt 0:00:22]} 10. Bf4 {[%emt 0:00:30]} e6 {[%emt 0:02:04]} 11. Na3 {[%emt 0:01:09]} Nh5 {[%emt 0:00:38]} 12. Be3 {[%emt 0:00:50]} Qe7 {[%emt 0:00:22]} 13. Nb5 {[%emt 0:01:05]} Bd7 {[%emt 0:00:31]} 14. Rfc1 {[%emt 0:00:33]} Rfc8 {[%emt 0:00:26]} 15. Bd2 {[%emt 0:02:18]} h6 {[%emt 0:02:27]} 16. h3 {[%emt 0:00:25]} Nf6 {[%emt 0:00:27]} 17. Ne5 {[%emt 0:01:04]} Ne4 {[%emt 0:01:10]} 18. Bxe4 {[%emt 0:01:38]} dxe4 {[%emt 0:00:21]} 19. Bf4 {[%emt 0:01:16]} Nxe5 {[%emt 0:02:54]} 20. Bxe5 {[%emt 0:00:27]} Bxe5 {[%emt 0:00:27]} 21. dxe5 {[%emt 0:00:20]} Qg5 {[%emt 0:05:29]} 22. Rxc8+ {[%emt 0:01:56]} Rxc8 {[%emt 0:00:20]} 23. Nd6 {[%emt 0:01:30]} Rc1+ {[%emt 0:00:21]} 24. Rxc1 {[%emt 0:00:23]} Qxc1+ {[%emt 0:00:20]} 25. Kg2 {[%emt 0:00:21]} e3 {[%emt 0:01:06]} 26. fxe3 {[%emt 0:06:19]} Qc5 {[%emt 0:00:46]} 27. Kf2 {[%emt 0:01:08]} Qxe5 {[%emt 0:01:22]} 28. Qb6 {[%emt 0:00:25]} Bxa4 {[%emt 0:03:19]} 29. Qd8+ {[%emt 0:02:17]} Kg7 {[%emt 0:00:20]} 30. Qe7 {[%emt 0:00:30]} Qf6+ {[%emt 0:00:21]} 31. Qxf6+ {[%emt 0:00:21]} Kxf6 {[%emt 0:00:20]} 32. Nxb7 {[%emt 0:00:21]} Bc6 {[%emt 0:00:33]} 33. Nxa5 {[%emt 0:00:21]} Bd5 {[%emt 0:00:20]} 34. b4 {[%emt 0:00:33]} Ke5 {[%emt 0:01:52]} 35. b5 {[%emt 0:00:21]} Kd6 {[%emt 0:00:20]} 36. b6 {[%emt 0:00:21]} g5 {[%emt 0:00:22]} 37. Ke1 {[%emt 0:00:41]} h5 {[%emt 0:00:48]} 38. h4 {[%emt 0:00:27]} g4 {[%emt 0:00:21]} 39. Kd2 {[%emt 0:00:55]} e5 {[%emt 0:00:27]} 40. e4 {[%emt 0:00:48]} Bxe4 {[%emt 0:00:22]} 41. Nc4+ {[%emt 0:30:26]} Ke6 {[%emt 0:30:21]} 42. Na5 {[%emt 0:00:29]} Kd6 {[%emt 0:00:24]} 43. b7 {[%emt 0:00:30]} Kc7 {[%emt 0:00:23]} 44. Nc4 {[%emt 0:00:21]} f6 {[%emt 0:00:48]} 45. Nd6 {[%emt 0:00:24]} Bxb7 {[%emt 0:00:21]} 46. Ne8+ {[%emt 0:00:21]} Kd7 {[%emt 0:00:28]} 47. Nxf6+ {[%emt 0:00:20]} Ke6 {[%emt 0:00:29]} 48. Nh7 {[%emt 0:00:33]} Be4 {[%emt 0:00:35]} 49. Ng5+ {[%emt 0:00:23]} Kd5 {[%emt 0:00:21]} 50. Kc3 {[%emt 0:00:30]} Bg6 {[%emt 0:00:23]} 51. e3 {[%emt 0:00:25]} Be8 {[%emt 0:00:46]} 52. Kb4 {[%emt 0:00:27]} Bd7 {[%emt 0:00:52]} 53. Kb3 {[%emt 0:01:06]} Bb5 {[%emt 0:00:29]} 54. Kc3 {[%emt 0:00:22]} Be8 {[%emt 0:00:21]} 55. Kd3 {[%emt 0:00:45]} Bg6+ {[%emt 0:00:31]} 56. Kc3 {[%emt 0:00:30]} Be8 {[%emt 0:00:22]} 1/2-1/2

[Event "FTX Road to Miami Prelims 2022"]
[Site "Online"]
[Date "2022.07.04"]
[Round "12.8"]
[White "Erigaisi Arjun"]
[Black "Ju, Wenjun"]
[Result "1-0"]
[ECO "D00"]
[WhiteElo "2689"]
[BlackElo "2560"]
[Annotator "ChessBase"]
[PlyCount "67"]
[EventDate "2022.07.10"]
[EventType "tourn"]
[EventCountry "NET"]
[SourceTitle "playchess.com"]
[Source "ChessBase"]
[SourceQuality "1"]
[TimeControl "40/5400+30:1800+30"]

1. d4 {[%emt 1:15:40]} Nf6 {[%emt 1:15:40]} 2. Nc3 {[%emt 0:00:22]} d5 {[%emt 0:00:22]} 3. Bf4 {[%emt 0:00:22]} c5 {[%emt 0:00:26]} 4. e3 {[%emt 0:00:22]} a6 {[%emt 0:00:37]} 5. dxc5 {[%emt 0:00:41]} Qa5 {[%emt 0:00:23]} 6. Nf3 {[%emt 0:00:28]} Nbd7 {[%emt 0:01:04]} 7. Nd2 {[%emt 0:01:38]} Qxc5 {[%emt 0:01:40]} 8. Nb3 {[%emt 0:00:23]} Qc6 {[%emt 0:00:24]} 9. Qd4 {[%emt 0:00:45]} e6 {[%emt 0:00:44]} 10. O-O-O {[%emt 0:00:42]} Be7 {[%emt 0:01:21]} 11. g4 {[%emt 0:00:51]} O-O {[%emt 0:00:56]} 12. Be2 {[%emt 0:00:50]} Nc5 {[%emt 0:01:30]} 13. Kb1 {[%emt 0:01:19]} b5 {[%emt 0:01:45]} 14. g5 {[%emt 0:00:43]} Nfd7 {[%emt 0:01:11]} 15. h4 {[%emt 0:00:53]} Re8 {[%emt 0:01:59]} 16. Bf3 {[%emt 0:01:03]} Nxb3 {[%emt 0:02:39]} 17. cxb3 {[%emt 0:00:27]} Qb6 {[%emt 0:00:25]} 18. Qd2 {[%emt 0:00:47]} a5 {[%emt 0:01:02]} 19. h5 {[%emt 0:01:18]} a4 {[%emt 0:00:25]} 20. b4 {[%emt 0:00:21]} Bb7 {[%emt 0:01:11]} 21. g6 {[%emt 0:00:25]} Nf6 {[%emt 0:00:27]} 22. Be5 {[%emt 0:00:51]} fxg6 {[%emt 0:01:11]} 23. hxg6 {[%emt 0:00:20]} h6 {[%emt 0:00:21]} 24. a3 {[%emt 0:00:25]} Nd7 {[%emt 0:02:30]} 25. Bd4 {[%emt 0:00:25]} Qd8 {[%emt 0:01:25]} 26. Nxb5 {[%emt 0:00:56]} Ba6 {[%emt 0:00:50]} 27. Nc3 {[%emt 0:00:30]} Bc4 {[%emt 0:00:21]} 28. Rc1 {[%emt 0:03:02]} Bb3 {[%emt 0:00:36]} 29. Bd1 {[%emt 0:01:27]} e5 {[%emt 0:00:54]} 30. Bc5 {[%emt 0:00:47]} Bxc5 {[%emt 0:00:48]} 31. Bxb3 {[%emt 0:00:22]} axb3 {[%emt 0:00:21]} 32. Qxd5+ {[%emt 0:00:22]} Kh8 {[%emt 0:00:26]} 33. Rxh6+ {[%emt 0:00:35]} gxh6 {[%emt 0:00:28]} 34. Qf7 {[%emt 0:00:20]} 1-0

[Event "FTX Road to Miami Prelims 2022"]
[Site "Online"]
[Date "2022.07.04"]
[Round "13.1"]
[White "Ju, Wenjun"]
[Black "Niemann, Hans Moke"]
[Result "1-0"]
[ECO "E68"]
[WhiteElo "2560"]
[BlackElo "2688"]
[Annotator "ChessBase"]
[PlyCount "79"]
[EventDate "2022.07.10"]
[EventType "tourn"]
[EventCountry "NET"]
[SourceTitle "playchess.com"]
[Source "ChessBase"]
[SourceQuality "1"]
[TimeControl "40/5400+30:1800+30"]

1. d4 {[%emt 1:15:40]} Nf6 {[%emt 1:15:40]} 2. c4 {[%emt 0:00:22]} g6 {[%emt 0:00:22]} 3. Nf3 {[%emt 0:00:21]} Bg7 {[%emt 0:00:22]} 4. g3 {[%emt 0:00:21]} O-O {[%emt 0:00:21]} 5. Bg2 {[%emt 0:00:20]} d6 {[%emt 0:00:20]} 6. O-O {[%emt 0:00:21]} Nbd7 {[%emt 0:00:21]} 7. Nc3 {[%emt 0:00:21]} e5 {[%emt 0:00:21]} 8. e4 {[%emt 0:00:21]} exd4 {[%emt 0:00:21]} 9. Nxd4 {[%emt 0:00:21]} Nc5 {[%emt 0:00:20]} 10. h3 {[%emt 0:00:34]} Re8 {[%emt 0:00:27]} 11. Re1 {[%emt 0:00:32]} h6 {[%emt 0:00:21]} 12. Rb1 {[%emt 0:01:04]} a5 {[%emt 0:00:22]} 13. b3 {[%emt 0:00:31]} Nfd7 {[%emt 0:00:36]} 14. f4 {[%emt 0:00:58]} Nb6 {[%emt 0:01:26]} 15. Be3 {[%emt 0:00:53]} Bd7 {[%emt 0:01:12]} 16. Ndb5 {[%emt 0:03:54]} Bxb5 {[%emt 0:01:05]} 17. Nxb5 {[%emt 0:00:27]} Nbd7 {[%emt 0:00:23]} 18. Qc2 {[%emt 0:00:37]} Rc8 {[%emt 0:00:55]} 19. Rbd1 {[%emt 0:00:28]} Qe7 {[%emt 0:00:25]} 20. Bf2 {[%emt 0:00:42]} h5 {[%emt 0:00:30]} 21. Qd2 {[%emt 0:00:44]} h4 {[%emt 0:00:49]} 22. g4 {[%emt 0:01:20]} g5 {[%emt 0:01:46]} 23. e5 {[%emt 0:02:28]} dxe5 {[%emt 0:00:28]} 24. fxg5 {[%emt 0:00:21]} Nf8 {[%emt 0:01:08]} 25. Bxh4 {[%emt 0:01:03]} Nce6 {[%emt 0:00:26]} 26. Nc3 {[%emt 0:00:48]} Ng6 {[%emt 0:00:56]} 27. Nd5 {[%emt 0:01:19]} Qf8 {[%emt 0:00:28]} 28. Qf2 {[%emt 0:01:33]} c6 {[%emt 0:00:28]} 29. Nf6+ {[%emt 0:01:23]} Bxf6 {[%emt 0:00:22]} 30. gxf6 {[%emt 0:00:20]} Qh6 {[%emt 0:00:29]} 31. Bg3 {[%emt 0:00:23]} Nef4 {[%emt 0:00:22]} 32. h4 {[%emt 0:00:38]} Rcd8 {[%emt 0:00:25]} 33. h5 {[%emt 0:01:12]} Rxd1 {[%emt 0:00:39]} 34. Rxd1 {[%emt 0:00:23]} Nf8 {[%emt 0:00:21]} 35. Re1 {[%emt 0:01:05]} Re6 {[%emt 0:00:40]} 36. Bh4 {[%emt 0:02:11]} Nh7 {[%emt 0:00:22]} 37. Rd1 {[%emt 0:01:04]} Ng5 {[%emt 0:00:30]} 38. Rd8+ {[%emt 0:00:27]} Kh7 {[%emt 0:00:34]} 39. Bxg5 {[%emt 0:00:22]} Qxg5 {[%emt 0:00:36]} 40. Be4+ {[%emt 0:00:21]} 1-0

[Event "FTX Road to Miami Prelims 2022"]
[Site "Online"]
[Date "2022.07.04"]
[Round "13.2"]
[White "Giri, Anish"]
[Black "Erigaisi Arjun"]
[Result "1/2-1/2"]
[ECO "D37"]
[WhiteElo "2760"]
[BlackElo "2689"]
[Annotator "ChessBase"]
[PlyCount "54"]
[EventDate "2022.07.10"]
[EventType "tourn"]
[EventCountry "NET"]
[SourceTitle "playchess.com"]
[Source "ChessBase"]
[SourceQuality "1"]
[TimeControl "40/5400+30:1800+30"]

1. c4 {[%emt 1:15:40]} e6 {[%emt 1:15:40]} 2. Nc3 {[%emt 0:00:22]} d5 {[%emt 0:00:22]} 3. d4 {[%emt 0:00:21]} h6 {[%emt 0:00:21]} 4. Nf3 {[%emt 0:00:57]} Nf6 {[%emt 0:00:22]} 5. e3 {[%emt 0:00:20]} Bd6 {[%emt 0:00:23]} 6. b3 {[%emt 0:01:13]} O-O {[%emt 0:00:45]} 7. Bb2 {[%emt 0:00:23]} b6 {[%emt 0:00:46]} 8. Bd3 {[%emt 0:01:08]} Bb7 {[%emt 0:00:24]} 9. O-O {[%emt 0:00:22]} Nbd7 {[%emt 0:01:07]} 10. Rc1 {[%emt 0:00:22]} a6 {[%emt 0:00:40]} 11. Qe2 {[%emt 0:00:49]} Qe7 {[%emt 0:00:45]} 12. e4 {[%emt 0:01:26]} dxe4 {[%emt 0:01:18]} 13. Nxe4 {[%emt 0:00:22]} Ba3 {[%emt 0:00:33]} 14. Bxa3 {[%emt 0:01:25]} Qxa3 {[%emt 0:00:20]} 15. Rc2 {[%emt 0:02:07]} Rad8 {[%emt 0:01:14]} 16. Rd1 {[%emt 0:00:55]} c5 {[%emt 0:00:47]} 17. Rcd2 {[%emt 0:00:31]} cxd4 {[%emt 0:01:01]} 18. Nxd4 {[%emt 0:00:22]} Qe7 {[%emt 0:01:22]} 19. Bb1 {[%emt 0:01:43]} Nxe4 {[%emt 0:02:46]} 20. Bxe4 {[%emt 0:00:22]} Nf6 {[%emt 0:00:21]} 21. Bxb7 {[%emt 0:00:39]} Qxb7 {[%emt 0:00:20]} 22. Qf3 {[%emt 0:01:36]} Qe4 {[%emt 0:00:27]} 23. Qxe4 {[%emt 0:00:29]} Nxe4 {[%emt 0:00:20]} 24. Rd3 {[%emt 0:00:21]} Nc5 {[%emt 0:00:28]} 25. R3d2 {[%emt 0:00:22]} Ne4 {[%emt 0:00:25]} 26. Rd3 {[%emt 0:00:20]} Nc5 {[%emt 0:00:27]} 27. R3d2 {[%emt 0:00:21]} Ne4 {[%emt 0:00:21]} 1/2-1/2

[Event "FTX Road to Miami Prelims 2022"]
[Site "Online"]
[Date "2022.07.04"]
[Round "13.3"]
[White "Xiong, Jeffery"]
[Black "Mamedyarov, Shakhriyar"]
[Result "1-0"]
[ECO "C47"]
[WhiteElo "2691"]
[BlackElo "2759"]
[Annotator "ChessBase"]
[PlyCount "103"]
[EventDate "2022.07.10"]
[EventType "tourn"]
[EventCountry "NET"]
[SourceTitle "playchess.com"]
[Source "ChessBase"]
[SourceQuality "1"]
[TimeControl "40/5400+30:1800+30"]

1. e4 {[%emt 1:15:40]} e5 {[%emt 1:15:40]} 2. Nf3 {[%emt 0:00:22]} Nc6 {[%emt 0:00:22]} 3. Nc3 {[%emt 0:00:22]} Nf6 {[%emt 0:00:23]} 4. d4 {[%emt 0:00:22]} Bb4 {[%emt 0:00:33]} 5. Nxe5 {[%emt 0:00:23]} Bxc3+ {[%emt 0:00:25]} 6. bxc3 {[%emt 0:00:22]} Qe7 {[%emt 0:00:21]} 7. Nxc6 {[%emt 0:01:51]} Qxe4+ {[%emt 0:00:28]} 8. Be2 {[%emt 0:02:52]} Qxc6 {[%emt 0:00:33]} 9. O-O {[%emt 0:00:34]} O-O {[%emt 0:00:23]} 10. c4 {[%emt 0:01:20]} d5 {[%emt 0:00:26]} 11. cxd5 {[%emt 0:01:17]} Nxd5 {[%emt 0:00:34]} 12. c4 {[%emt 0:00:47]} Nc3 {[%emt 0:00:38]} 13. Qd3 {[%emt 0:00:21]} Nxe2+ {[%emt 0:00:25]} 14. Qxe2 {[%emt 0:00:20]} Re8 {[%emt 0:00:30]} 15. Be3 {[%emt 0:00:24]} Bf5 {[%emt 0:00:40]} 16. Rac1 {[%emt 0:00:46]} b6 {[%emt 0:00:45]} 17. d5 {[%emt 0:01:04]} Qg6 {[%emt 0:00:23]} 18. Qf3 {[%emt 0:00:24]} Re4 {[%emt 0:01:41]} 19. c5 {[%emt 0:00:49]} Rd8 {[%emt 0:01:27]} 20. cxb6 {[%emt 0:00:57]} cxb6 {[%emt 0:00:23]} 21. h3 {[%emt 0:02:00]} Ra4 {[%emt 0:02:38]} 22. Rfd1 {[%emt 0:02:42]} h5 {[%emt 0:01:19]} 23. d6 {[%emt 0:00:54]} Be4 {[%emt 0:00:37]} 24. Qg3 {[%emt 0:00:22]} Qxg3 {[%emt 0:00:22]} 25. fxg3 {[%emt 0:00:20]} Rxa2 {[%emt 0:00:21]} 26. Rd4 {[%emt 0:02:01]} Bxg2 {[%emt 0:04:53]} 27. d7 {[%emt 0:00:27]} Bxh3 {[%emt 0:00:21]} 28. Rc8 {[%emt 0:00:26]} Rxc8 {[%emt 0:00:22]} 29. dxc8=Q+ {[%emt 0:00:20]} Bxc8 {[%emt 0:00:22]} 30. Rd8+ {[%emt 0:00:20]} Kh7 {[%emt 0:00:21]} 31. Rxc8 {[%emt 0:00:20]} f6 {[%emt 0:01:56]} 32. Rc7 {[%emt 0:00:24]} Kg6 {[%emt 0:00:30]} 33. Bf2 {[%emt 0:00:58]} Ra4 {[%emt 0:00:57]} 34. Kg2 {[%emt 0:00:33]} Kh6 {[%emt 0:00:30]} 35. Rf7 {[%emt 0:00:35]} Kh7 {[%emt 0:01:12]} 36. Rc7 {[%emt 0:00:24]} Kg8 {[%emt 0:00:24]} 37. Rc8+ {[%emt 0:00:23]} Kh7 {[%emt 0:00:22]} 38. Rc7 {[%emt 0:00:20]} Kh6 {[%emt 0:01:20]} 39. Rf7 {[%emt 0:00:22]} Ra3 {[%emt 0:00:23]} 40. Re7 {[%emt 0:01:06]} Ra2 {[%emt 0:00:31]} 41. Kf3 {[%emt 0:30:24]} Ra3+ {[%emt 0:30:29]} 42. Kg2 {[%emt 0:00:21]} g5 {[%emt 0:01:14]} 43. Re6 {[%emt 0:00:38]} Kg6 {[%emt 0:00:23]} 44. Bd4 {[%emt 0:00:21]} Kf5 {[%emt 0:00:24]} 45. Rxf6+ {[%emt 0:00:24]} Kg4 {[%emt 0:00:21]} 46. Bf2 {[%emt 0:00:37]} b5 {[%emt 0:00:26]} 47. Rd6 {[%emt 0:00:28]} Ra4 {[%emt 0:00:27]} 48. Rd5 {[%emt 0:00:41]} a6 {[%emt 0:00:23]} 49. Be3 {[%emt 0:00:26]} Ra2+ {[%emt 0:00:21]} 50. Bd2 {[%emt 0:00:21]} Rxd2+ {[%emt 0:00:30]} 51. Rxd2 {[%emt 0:00:20]} h4 {[%emt 0:00:31]} 52. gxh4 {[%emt 0:00:29]} 1-0